bitfinex/quotes_BTCUSD_20250519
["timestamp","ask_amount","ask_price","bid_price","bid_amount"]
[1747619027938,0.04001895,104910.0,104900.0,0.65573675]
[1747619028371,0.03048716,104910.0,104900.0,0.65573675]
[1747619028594,0.04001895,104910.0,104900.0,0.65573675]
[1747619028834,0.01152961,104930.0,104920.0,0.55921353]
[1747619029046,0.23072179,104930.0,104920.0,0.5496831]
[1747619029265,0.24025268,104930.0,104920.0,0.55921389]
[1747619029483,0.04011982,104930.0,104920.0,0.55921398]
[1747619029668,0.23072307,104930.0,104920.0,0.55921398]
[1747619029915,0.0210595,104930.0,104920.0,0.56874441]
[1747619030136,0.03058874,104930.0,104920.0,0.56874441]
[1747619030356,0.01152934,104930.0,104920.0,0.60384441]
[1747619030588,0.002,104930.0,104920.0,0.70115381]
[1747619030830,0.01152752,104950.0,104940.0,0.25427175]
[1747619031053,0.03072715,104950.0,104940.0,0.35158115]
[1747619031674,0.02119926,104950.0,104940.0,0.35158115]
[1747619031896,0.03072715,104950.0,104940.0,0.33438115]
[1747619032802,0.21176728,104950.0,104940.0,0.0973094]
[1747619033009,0.02858676,104940.0,104930.0,0.25730297]
[1747619033251,0.02858676,104940.0,104930.0,0.35461237]
[1747619033486,0.02858676,104940.0,104920.0,0.0102145]
[1747619033487,0.20966302,104930.0,104920.0,0.0102145]
[1747619033713,0.22656302,104930.0,104920.0,0.0102145]
[1747619033958,0.22656302,104930.0,104920.0,0.0072145]
[1747619034183,0.22656302,104930.0,104920.0,0.34]
[1747619034399,0.02859184,104920.0,104910.0,0.22876451]
[1747619034622,0.03812263,104920.0,104910.0,0.23829594]
[1747619034961,0.22874405,104920.0,104910.0,0.56876451]
[1747619035200,0.2192138,104920.0,104910.0,0.56876451]
[1747619036037,0.2192138,104920.0,104910.0,0.57829594]
[1747619036842,0.2357873,104940.0,104920.0,0.37812236]
[1747619037050,0.22872225,104930.0,104920.0,0.64699259]
[1747619037248,0.038119,104930.0,104920.0,0.64699259]
[1747619037453,0.21919291,104930.0,104920.0,0.65652329]
[1747619038511,0.20964296,104940.0,104930.0,0.20966311]
[1747619038680,0.02858639,104940.0,104930.0,0.22872224]
[1747619039669,0.0285863,104940.0,104930.0,0.22872224]
[1747619039881,0.02119944,104950.0,104940.0,0.54964277]
[1747619040092,0.02119944,104950.0,104940.0,0.55917166]
[1747619040364,0.03072751,104950.0,104940.0,0.55917166]
[1747619040582,0.03072733,104950.0,104940.0,0.55669166]
[1747619040820,0.0402554,104950.0,104940.0,0.55669166]
[1747619041003,0.04978356,104950.0,104940.0,0.55669166]
[1747619041264,0.21176728,104950.0,104940.0,0.34]
[1747619041720,0.21176728,104950.0,104940.0,0.55064314]
[1747619041926,0.21176728,104950.0,104940.0,0.56017194]
[1747619042132,0.21176728,104950.0,104940.0,0.54111416]
[1747619042337,0.19271105,104950.0,104940.0,0.54111434]
[1747619042540,0.19271105,104950.0,104940.0,0.57468673]
[1747619042541,0.39919105,104950.0,104940.0,0.57468673]
[1747619042952,0.19271105,104950.0,104940.0,0.56515784]
[1747619043086,0.39919105,104950.0,104940.0,0.35551434]
[1747619043296,0.41509105,104950.0,104940.0,0.01551434]
[1747619044151,0.39919105,104950.0,104940.0,0.20609943]
[1747619044359,0.20862412,104950.0,104940.0,0.22515775]
[1747619044565,0.24673577,104950.0,104940.0,0.24421525]
[1747619044804,0.25626411,104950.0,104940.0,0.25374415]
[1747619045214,0.24673577,104950.0,104940.0,0.25374351]
[1747619045559,0.23720743,104950.0,104940.0,0.27104351]
[1747619045770,0.22767945,104950.0,104940.0,0.27104351]
[1747619045973,0.02119945,104950.0,104940.0,0.27104351]
[1747619046182,0.03072725,104950.0,104940.0,0.27104351]
[1747619046356,0.04025523,104950.0,104940.0,0.27104351]
[1747619046561,0.03072725,104950.0,104940.0,0.27104351]
[1747619046764,0.04025523,104950.0,104940.0,0.27104351]
[1747619049265,0.02119945,104950.0,104940.0,0.27104351]
[1747619049470,0.00214412,104950.0,104940.0,0.38575291]
[1747619049678,0.01167164,104950.0,104940.0,0.38575291]
[1747619049886,0.03072706,104950.0,104940.0,0.38575291]
[1747619050097,0.03072706,104950.0,104940.0,0.35105291]
[1747619050248,0.04025495,104950.0,104940.0,0.35105291]
[1747619050863,0.04025495,104950.0,104940.0,0.20609943]
[1747619050864,0.21176728,104950.0,104940.0,0.20609943]
[1747619051067,0.21176728,104950.0,104940.0,0.22515739]
[1747619051270,0.21176728,104950.0,104940.0,0.35551434]
[1747619051450,0.21176728,104950.0,104940.0,0.55562868]
[1747619051666,0.19271105,104950.0,104940.0,0.35551434]
[1747619052070,0.22611105,104950.0,104940.0,0.001]
[1747619052278,0.32342045,104950.0,104940.0,0.001]
[1747619052472,0.52990045,104950.0,104940.0,0.001]
[1747619053058,0.20966293,104930.0,104920.0,0.34]
[1747619053270,0.20013323,104930.0,104920.0,0.34]
[1747619054155,0.20013323,104930.0,104920.0,0.341]
[1747619055040,0.20013323,104930.0,104920.0,0.35053107]
[1747619055852,0.20013323,104930.0,104920.0,0.341]
[1747619056234,0.20013323,104930.0,104920.0,0.35053107]
[1747619057158,0.22410325,104930.0,104920.0,0.341]
[1747619058324,0.20710325,104930.0,104920.0,0.341]
[1747619064102,0.22400325,104930.0,104920.0,0.341]
[1747619067312,0.22360325,104930.0,104920.0,0.001]
[1747619069844,0.42936325,104930.0,104920.0,0.001]
[1747619070825,0.52667265,104930.0,104920.0,0.001]
[1747619071254,0.74456465,104930.0,104920.0,0.001]
[1747619071461,1.22507265,104930.0,104920.0,0.001]
[1747619072101,1.23959087,104930.0,104920.0,0.001]
[1747619072343,0.2097029,104910.0,104900.0,0.02274922]
[1747619072589,0.4155029,104910.0,104900.0,0.02274922]
[1747619074065,0.4155029,104910.0,104900.0,0.01556589]
[1747619074306,0.4155029,104910.0,104900.0,0.01656589]
[1747619076729,0.2097029,104910.0,104900.0,0.01656589]
[1747619076946,0.2097029,104910.0,104900.0,0.03103267]
[1747619085387,0.02859519,104910.0,104900.0,0.25028826]
[1747619085611,0.98631265,104930.0,104920.0,0.20015249]
[1747619085861,0.9080633,104930.0,104920.0,0.20968337]
[1747619086087,0.9080633,104930.0,104920.0,0.21921416]
[1747619086319,0.9080633,104930.0,104920.0,0.20015249]
[1747619086539,0.88900325,104930.0,104920.0,0.20015249]
[1747619086751,0.89200325,104930.0,104920.0,0.20115249]
[1747619087188,0.88900325,104930.0,104920.0,0.20591444]
[1747619087608,0.19060325,104930.0,104920.0,0.20691444]
[1747619088880,0.19060325,104930.0,104920.0,0.01629302]
[1747619090333,0.19060325,104930.0,104920.0,0.00676195]
[1747619093201,0.39640066,104940.0,104920.0,0.58884486]
[1747619093436,0.21919291,104930.0,104920.0,0.58884504]
[1747619093651,0.21919291,104930.0,104920.0,0.59837574]
[1747619093861,0.2096633,104930.0,104920.0,0.58884504]
[1747619094071,0.20013341,104930.0,104920.0,0.58784504]
[1747619094280,0.20013341,104930.0,104920.0,0.58884504]
[1747619094478,0.19060325,104930.0,104920.0,0.57931425]
[1747619095635,0.19060325,104930.0,104920.0,0.58549758]
[1747619096360,0.19060325,104930.0,104920.0,0.58649758]
[1747619096561,0.19060325,104930.0,104920.0,0.20833563]
[1747619096715,0.19060325,104930.0,104920.0,0.22739712]
[1747619096917,0.02858984,104930.0,104920.0,0.23692755]
[1747619097150,0.21919309,104930.0,104920.0,0.22739712]
[1747619098369,0.21919309,104930.0,104920.0,0.19880475]
[1747619098719,0.19060325,104930.0,104920.0,0.00818333]
[1747619099162,0.19060325,104930.0,104920.0,0.0177144]
[1747619099372,0.19060325,104930.0,104920.0,0.01053107]
[1747619099598,0.19060325,104930.0,104920.0,0.001]
[1747619099807,0.20700325,104930.0,104920.0,0.001]
[1747619100233,0.19060325,104930.0,104920.0,0.001]
[1747619100912,0.20640325,104930.0,104920.0,0.001]
[1747619101121,0.22350325,104930.0,104920.0,0.001]
[1747619102216,0.85127525,104930.0,104920.0,0.001]
[1747619102425,1.28858465,104930.0,104920.0,0.001]
[1747619102862,1.3031255,104930.0,104920.0,0.001]
[1747619103105,0.01907003,104870.0,104860.0,0.33864766]
[1747619103328,0.02860537,104870.0,104860.0,0.45502928]
[1747619103611,0.01907003,104870.0,104860.0,0.45502928]
[1747619104067,0.03814062,104870.0,104860.0,0.37967488]
[1747619104286,0.02860519,104870.0,104860.0,0.34727488]
[1747619104507,0.02860519,104870.0,104860.0,0.32868592]
[1747619104508,0.2288533,104870.0,104860.0,0.32868592]
[1747619104734,0.23838891,104870.0,104860.0,0.34775815]
[1747619104959,0.23838891,104870.0,104860.0,0.35729412]
[1747619105167,0.20978344,104870.0,104860.0,0.11896723]
[1747619105375,0.20978344,104870.0,104860.0,0.24511917]
[1747619105557,0.20978344,104870.0,104860.0,0.58511917]
[1747619105769,0.02007068,104870.0,104860.0,0.61671311]
[1747619105978,0.03914126,104870.0,104860.0,0.61671311]
[1747619106886,0.001,104870.0,104860.0,0.74742251]
[1747619107335,0.02007004,104870.0,104860.0,0.74742251]
[1747619107541,0.02006994,104870.0,104860.0,0.74742251]
[1747619108506,0.01053488,104870.0,104860.0,0.74502251]
[1747619108946,0.02007004,104870.0,104860.0,0.7507785]
[1747619109719,0.001,104870.0,104860.0,0.7507785]
[1747619110859,0.001,104870.0,104860.0,0.73200375]
[1747619112892,0.01053479,104870.0,104860.0,0.73200375]
[1747619113125,0.001,104870.0,104860.0,0.73200375]
[1747619116156,0.001,104870.0,104860.0,0.9511446]
[1747619116342,0.001,104870.0,104860.0,0.9611446]
[1747619116556,0.002,104890.0,104880.0,0.23609713]
[1747619116769,0.002,104890.0,104880.0,0.70464738]
[1747619116979,0.002,104910.0,104900.0,0.55925532]
[1747619117187,0.002,104910.0,104900.0,0.68966472]
[1747619117408,0.002,104910.0,104900.0,0.89422472]
[1747619117602,0.002,104910.0,104900.0,0.87732472]
[1747619118447,0.01153116,104910.0,104900.0,0.87732472]
[1747619118676,0.01153116,104910.0,104900.0,0.88308071]
[1747619119320,0.01153116,104910.0,104900.0,0.88408071]
[1747619120130,0.01153116,104910.0,104900.0,0.86788071]
[1747619121444,0.002,104910.0,104900.0,0.86788071]
[1747619121655,0.002,104910.0,104900.0,0.89998071]
[1747619124587,0.002,104910.0,104900.0,0.69542071]
[1747619124793,0.002,104910.0,104900.0,0.89978071]
[1747619127966,0.002,104910.0,104900.0,0.91432156]
[1747619128182,0.002,104930.0,104920.0,0.21921353]
[1747619128413,0.002,104930.0,104920.0,0.67182293]
[1747619128641,0.002,104930.0,104920.0,0.87606293]
[1747619128853,0.002,104930.0,104920.0,0.89276293]
[1747619129087,0.002,104930.0,104920.0,0.93141686]
[1747619129291,0.002,104950.0,104940.0,0.21917175]
[1747619129498,0.00214412,104950.0,104940.0,0.31648115]
[1747619129730,0.01167174,104950.0,104940.0,0.31648115]
[1747619129932,0.00214412,104950.0,104940.0,0.31648115]
[1747619130170,0.00214412,104950.0,104940.0,0.34898115]
[1747619130375,0.03072761,104950.0,104940.0,0.31648115]
[1747619130578,0.24456737,104950.0,104940.0,0.0973094]
[1747619130783,0.20966256,104930.0,104920.0,0.56955235]
[1747619130985,0.0449892,104930.0,104920.0,0.6801668]
[1747619131188,0.02702898,104940.0,104930.0,0.55919245]
[1747619131388,0.05561592,104940.0,104930.0,0.55919254]
[1747619131601,0.24620155,104940.0,104930.0,0.54966293]
[1747619131800,0.02702871,104940.0,104930.0,0.54966293]
[1747619132003,0.19271105,104950.0,104940.0,0.20964323]
[1747619132004,0.22761105,104950.0,104940.0,0.20964323]
[1747619132176,0.22761105,104950.0,104930.0,0.6565013]
[1747619132377,0.03811445,104940.0,104930.0,0.66603064]
[1747619132896,0.03811445,104940.0,104930.0,0.67176178]
[1747619133121,0.04764352,104940.0,104930.0,0.66223244]
[1747619133354,0.04764425,104940.0,104930.0,0.65270301]
[1747619133597,0.24620082,104940.0,104930.0,0.66223317]
[1747619133806,0.24620082,104940.0,104930.0,0.65370356]
[1747619134236,0.05561573,104940.0,104930.0,0.66323326]
[1747619134454,0.03811573,104940.0,104930.0,0.67276278]
[1747619134883,0.02858657,104940.0,104930.0,0.67276278]
[1747619135092,0.03811573,104940.0,104930.0,0.67276278]
[1747619135918,0.24464332,104940.0,104930.0,0.00673114]
[1747619136358,0.31999772,104940.0,104930.0,0.00673114]
[1747619136579,0.2438029,104910.0,104900.0,0.002]
[1747619136795,0.4479229,104910.0,104900.0,0.002]
[1747619137226,0.5452323,104910.0,104900.0,0.002]
[1747619137893,0.54532381,104910.0,104900.0,0.002]
[1747619138499,0.54732381,104910.0,104900.0,0.002]
[1747619138866,0.24589441,104910.0,104900.0,0.002]
[1747619139086,0.45005441,104910.0,104900.0,0.01153288]
[1747619139295,0.24589441,104910.0,104900.0,0.21172343]
[1747619139479,0.45005441,104910.0,104900.0,0.21172343]
[1747619139689,0.25941428,104910.0,104900.0,0.5803209]
[1747619139894,0.26894607,104910.0,104900.0,0.58032108]
[1747619140322,0.24984607,104910.0,104900.0,0.58032108]
[1747619140521,0.44048566,104910.0,104900.0,0.58032108]
[1747619140738,0.42448566,104910.0,104900.0,0.58032054]
[1747619141837,0.20525151,104910.0,104900.0,0.58032054]
[1747619142051,0.00109151,104910.0,104900.0,0.6776294]
[1747619143593,0.00109151,104910.0,104900.0,0.72657025]
[1747619144447,9.151e-05,104910.0,104900.0,0.72657025]
[1747619144911,9.151e-05,104910.0,104900.0,0.72757025]
[1747619145144,0.01915428,104910.0,104900.0,0.66457296]
[1747619145372,0.00962276,104910.0,104900.0,0.86236463]
[1747619145591,0.02868589,104910.0,104900.0,0.86236472]
[1747619145796,0.0286858,104910.0,104900.0,0.87189697]
[1747619146031,9.151e-05,104910.0,104900.0,0.87189697]
[1747619146257,9.151e-05,104910.0,104900.0,0.89643782]
[1747619146479,9.151e-05,104910.0,104900.0,0.93123782]
[1747619146717,9.151e-05,104910.0,104900.0,0.93423782]
[1747619147562,0.2516463,104940.0,104930.0,0.02858938]
[1747619147767,0.26117537,104940.0,104930.0,0.55919263]
[1747619147997,0.06654453,104940.0,104930.0,0.55919263]
[1747619148377,0.06654453,104940.0,104930.0,0.54966311]
[1747619148378,0.2476011,104940.0,104930.0,0.54966311]
[1747619148796,0.2476011,104940.0,104930.0,0.55919281]
[1747619149566,0.2496011,104940.0,104930.0,0.55919281]
[1747619150007,0.2496011,104940.0,104930.0,0.56493993]
[1747619150215,0.001,104940.0,104930.0,0.68130846]
[1747619150432,0.01052852,104940.0,104930.0,0.68130846]
[1747619150659,0.01152852,104940.0,104930.0,0.68130846]
[1747619150878,0.002,104940.0,104930.0,0.69553417]
[1747619151091,0.01152852,104940.0,104930.0,0.69553417]
[1747619151513,0.002,104940.0,104930.0,0.70511536]
[1747619151734,0.01152852,104940.0,104930.0,0.70511536]
[1747619151956,0.002,104940.0,104930.0,0.73981536]
[1747619152170,0.002,104940.0,104930.0,0.76647691]
[1747619152367,0.002,104940.0,104930.0,0.78101776]
[1747619153020,0.001,104940.0,104930.0,0.94995776]
[1747619153407,0.01052852,104940.0,104930.0,0.93641691]
[1747619153614,0.001,104940.0,104930.0,0.90975536]
[1747619154773,0.001,104940.0,104930.0,0.90017417]
[1747619157362,0.001,104940.0,104930.0,0.91657417]
[1747619157597,0.04692589,104970.0,104940.0,0.54512594]
[1747619157764,0.05659654,104970.0,104960.0,0.55912999]
[1747619157970,0.07564923,104970.0,104960.0,0.55912999]
[1747619158166,0.27570638,104970.0,104960.0,0.34]
[1747619158390,0.24712844,104970.0,104960.0,0.34]
[1747619159386,0.25104081,104970.0,104960.0,0.34574712]
[1747619159594,0.25104081,104970.0,104960.0,0.00574712]
[1747619159810,0.25104081,104970.0,104960.0,0.34574712]
[1747619160251,0.24704081,104970.0,104960.0,0.34574712]
[1747619160723,0.24904081,104970.0,104960.0,0.35859435]
[1747619161546,0.24904081,104970.0,104960.0,0.01859435]
[1747619164643,0.45240081,104970.0,104960.0,0.00574712]
[1747619165890,0.54971021,104970.0,104960.0,0.00574712]
[1747619166316,0.54971021,104970.0,104940.0,0.35673199]
[1747619166317,0.53065724,104970.0,104940.0,0.36626124]
[1747619166523,0.25125114,104950.0,104940.0,0.36626124]
[1747619166726,0.03565587,104950.0,104940.0,0.56637531]
[1747619166965,0.00952752,104950.0,104940.0,0.58543281]
[1747619167157,0.00952752,104950.0,104940.0,0.68274221]
[1747619167355,0.01905423,104960.0,104950.0,0.55915087]
[1747619167577,0.01905369,104960.0,104950.0,0.55915105]
[1747619167767,0.03810783,104960.0,104950.0,0.56867876]
[1747619167976,0.04763526,104960.0,104950.0,0.58158643]
[1747619168181,0.03810783,104960.0,104950.0,0.59111414]
[1747619169451,0.04763517,104960.0,104950.0,0.59111414]
[1747619169691,0.03810783,104960.0,104950.0,0.56253074]
[1747619169893,0.22865661,104960.0,104950.0,0.57205854]
[1747619170119,0.22012936,104960.0,104950.0,0.57205854]
[1747619170333,0.22012972,104960.0,104950.0,0.57205899]
[1747619170539,0.22965697,104960.0,104950.0,0.59111477]
[1747619170722,0.22965697,104960.0,104950.0,0.59111486]
[1747619171079,0.001,104960.0,104950.0,0.72082372]
[1747619171459,0.02005369,104960.0,104950.0,0.68842372]
[1747619172097,0.01052671,104960.0,104950.0,0.68842372]
[1747619172305,0.01052671,104960.0,104950.0,0.69081737]
[1747619172718,0.02005351,104960.0,104950.0,0.69081737]
[1747619173517,0.001,104960.0,104950.0,0.92553737]
[1747619173722,0.001,104960.0,104950.0,0.95007822]
[1747619174329,0.001,104960.0,104950.0,0.75951129]
[1747619174555,0.001,104960.0,104950.0,0.95007822]
[1747619174982,0.021109,104970.0,104960.0,0.2326882]
[1747619175179,0.021109,104970.0,104960.0,0.3299976]
[1747619175352,0.03063516,104970.0,104960.0,0.3299976]
[1747619175795,0.03063516,104970.0,104960.0,0.32999769]
[1747619176134,0.0411615,104970.0,104960.0,0.32999769]
[1747619176403,0.0411615,104970.0,104960.0,0.34292939]
[1747619176820,0.21264034,104970.0,104960.0,0.12379931]
[1747619177037,0.21264034,104970.0,104960.0,0.02556991]
[1747619177038,0.24354034,104970.0,104960.0,0.02556991]
[1747619182650,0.24354034,104970.0,104960.0,0.23517292]
[1747619182767,0.24354034,104970.0,104960.0,0.22564612]
[1747619183184,0.24354034,104970.0,104960.0,0.23517328]
[1747619183396,0.23401418,104970.0,104960.0,0.02556991]
[1747619183594,0.22448784,104970.0,104960.0,0.02556991]
[1747619184268,0.22448784,104970.0,104960.0,0.02656991]
[1747619187416,0.02210963,104970.0,104960.0,0.5856999]
[1747619187626,0.23169258,104970.0,104960.0,0.58570008]
[1747619188065,0.23169258,104970.0,104960.0,0.5761731]
[1747619188271,0.22216678,104970.0,104960.0,0.57617328]
[1747619188670,0.21264071,104970.0,104960.0,0.57617328]
[1747619188848,0.21871437,104970.0,104960.0,0.56664603]
[1747619189050,0.20918784,104970.0,104960.0,0.36656991]
[1747619189421,0.22598784,104970.0,104960.0,0.36656991]
[1747619189827,0.22598784,104970.0,104960.0,0.36893944]
[1747619192609,0.19358784,104970.0,104960.0,0.56901565]
[1747619192823,0.02210991,104970.0,104960.0,0.59759695]
[1747619193038,0.01258293,104970.0,104960.0,0.69490635]
[1747619193257,0.03163498,104970.0,104960.0,0.70443315]
[1747619193472,0.04116132,104970.0,104960.0,0.70443315]
[1747619193687,0.21264025,104970.0,104960.0,0.46624884]
[1747619193942,0.21264025,104970.0,104960.0,0.36893944]
[1747619193943,0.24394025,104970.0,104960.0,0.36893944]
[1747619194650,0.24394025,104970.0,104960.0,0.57854281]
[1747619194897,0.21264025,104970.0,104960.0,0.56901565]
[1747619195121,0.03163616,104970.0,104960.0,0.59759722]
[1747619195356,0.22206183,104970.0,104960.0,0.59759731]
[1747619196018,0.21253576,104970.0,104960.0,0.58807024]
[1747619196244,0.21253576,104970.0,104960.0,0.59759731]
[1747619196709,0.02200414,104970.0,104960.0,0.75350109]
[1747619196970,0.03153048,104970.0,104960.0,0.72160109]
[1747619197406,0.2220611,104970.0,104960.0,0.70254713]
[1747619197871,0.2125353,104970.0,104960.0,0.69301997]
[1747619198093,0.2125353,104970.0,104960.0,0.70254722]
[1747619198320,0.00295227,104970.0,104960.0,0.72160109]
[1747619198538,0.03153021,104970.0,104960.0,0.72160109]
[1747619198788,0.02200396,104970.0,104960.0,0.72160109]
[1747619199211,0.03153012,104970.0,104960.0,0.72160109]
[1747619199827,0.04105646,104970.0,104960.0,0.72160109]
[1747619200913,0.03153012,104970.0,104960.0,0.72160109]
[1747619201123,0.04105646,104970.0,104960.0,0.72160109]
[1747619201905,0.03153012,104970.0,104960.0,0.72160109]
[1747619202647,0.04105637,104970.0,104960.0,0.72160109]
[1747619203053,0.05058271,104970.0,104960.0,0.72160109]
[1747619204218,0.02200396,104970.0,104960.0,0.72160109]
[1747619204428,0.04105637,104970.0,104960.0,0.72160109]
[1747619204638,0.04105628,104970.0,104960.0,0.72160109]
[1747619206418,0.03153003,104970.0,104960.0,0.72160109]
[1747619207403,0.04105628,104970.0,104960.0,0.72160109]
[1747619208445,0.03153003,104970.0,104960.0,0.72160109]
[1747619208654,0.04105628,104970.0,104960.0,0.72160109]
[1747619208863,0.05058262,104970.0,104960.0,0.72160109]
[1747619210957,0.03153003,104970.0,104960.0,0.72160109]
[1747619211165,0.04105628,104970.0,104960.0,0.72160109]
[1747619212995,0.03153003,104970.0,104960.0,0.72160109]
[1747619213204,0.02200396,104970.0,104960.0,0.72160109]
[1747619213430,0.03153021,104970.0,104960.0,0.72160109]
[1747619214646,0.02200396,104970.0,104960.0,0.72260109]
[1747619215065,0.01247798,104970.0,104960.0,0.72260109]
[1747619215495,0.02200387,104970.0,104960.0,0.72260109]
[1747619216893,0.02181674,104970.0,104960.0,0.72260109]
[1747619217851,0.002,104990.0,104980.0,0.55908824]
[1747619218098,0.002,104990.0,104980.0,0.65639764]
[1747619218344,0.01152408,104990.0,104980.0,0.6831321]
[1747619218596,0.01152408,104990.0,104980.0,0.68887051]
[1747619218840,0.02104834,104990.0,104980.0,0.68887051]
[1747619219051,0.02304834,104990.0,104980.0,0.68887051]
[1747619219256,0.01352408,104990.0,104980.0,0.68887051]
[1747619219463,0.02304834,104990.0,104980.0,0.68887051]
[1747619220095,0.03257269,104990.0,104980.0,0.68887051]
[1747619220307,0.03057269,104990.0,104980.0,0.68887051]
[1747619220933,0.02104834,104990.0,104980.0,0.68887051]
[1747619222211,0.03057278,104990.0,104980.0,0.68887051]
[1747619222432,0.03724834,104990.0,104980.0,0.68887051]
[1747619222688,0.04677269,104990.0,104980.0,0.68887051]
[1747619223130,0.03057269,104990.0,104980.0,0.68887051]
[1747619223352,0.002,104990.0,104980.0,0.70341136]
[1747619223568,0.0115239,104990.0,104980.0,0.70341136]
[1747619224863,0.0115239,104990.0,104980.0,0.70441136]
[1747619225513,0.002,104990.0,104980.0,0.70441136]
[1747619225764,0.01152399,104990.0,104980.0,0.70441136]
[1747619226185,0.0115239,104990.0,104980.0,0.70441136]
[1747619227717,0.02104798,104990.0,104980.0,0.70441136]
[1747619228282,0.002,104990.0,104980.0,0.70441136]
[1747619228487,0.002,104990.0,104980.0,0.72091136]
[1747619228674,0.002,104990.0,104980.0,0.51902312]
[1747619228878,0.002,104990.0,104980.0,0.7113769]
[1747619231053,0.22504838,105010.0,105000.0,0.55904651]
[1747619231054,0.02104443,105010.0,105000.0,0.55904651]
[1747619231309,0.04057213,105010.0,105000.0,0.65635591]
[1747619231517,0.04057204,105010.0,105000.0,0.65635591]
[1747619231924,0.05009476,105010.0,105000.0,0.65635591]
[1747619232356,0.04057204,105010.0,105000.0,0.65635591]
[1747619232506,0.03104932,105010.0,105000.0,0.65635591]
[1747619233099,0.03304932,105010.0,105000.0,0.66209432]
[1747619234114,0.04257204,105010.0,105000.0,0.66209432]
[1747619234525,0.04257195,105010.0,105000.0,0.66209432]
[1747619234942,0.03304932,105010.0,105000.0,0.6716719]
[1747619235218,0.04257195,105010.0,105000.0,0.6716719]
[1747619235391,0.05209476,105010.0,105000.0,0.6716719]
[1747619235601,0.06869476,105010.0,105000.0,0.6716719]
[1747619235844,0.25915281,105010.0,105000.0,0.46713729]
[1747619236050,0.24628603,105010.0,105000.0,0.02982789]
[1747619236840,0.24619842,105010.0,105000.0,0.02982789]
[1747619237265,0.44831842,105010.0,105000.0,0.02982789]
[1747619238498,0.44831842,105010.0,105000.0,0.02025031]
[1747619241381,0.44831842,105010.0,105000.0,0.02977411]
[1747619241588,0.42927298,105010.0,105000.0,0.02025031]
[1747619243287,0.42927298,105010.0,105000.0,0.02743275]
[1747619243965,0.42927298,105010.0,105000.0,0.21790894]
[1747619244197,0.42927298,105010.0,105000.0,0.02743275]
[1747619244380,0.42655298,105010.0,105000.0,0.02743275]
[1747619251808,0.42655298,105010.0,105000.0,0.37795655]
[1747619252001,0.22443298,105010.0,105000.0,0.36843275]
[1747619252205,0.42655298,105010.0,105000.0,0.36843275]
[1747619253059,0.42655298,105010.0,105000.0,0.37082789]
[1747619253673,0.42655298,105010.0,105000.0,0.38035169]
[1747619253879,0.42655298,105010.0,105000.0,0.37082789]
[1747619254080,0.41329814,105010.0,105000.0,0.5708277]
[1747619254300,0.22070104,105010.0,105000.0,0.57082788]
[1747619254491,0.22070104,105010.0,105000.0,0.58987503]
[1747619254694,0.21117851,105010.0,105000.0,0.58987521]
[1747619254928,0.20165588,105010.0,105000.0,0.58987521]
[1747619255153,0.20165588,105010.0,105000.0,0.59939874]
[1747619255361,0.20165588,105010.0,105000.0,0.60892218]
[1747619255621,0.22383298,105010.0,105000.0,0.57082788]
[1747619255815,0.22383298,105010.0,105000.0,0.58035159]
[1747619256552,0.22383298,105010.0,105000.0,0.58987521]
[1747619257901,0.22383298,105010.0,105000.0,0.37082789]
[1747619259063,0.22383298,105010.0,105000.0,0.57082788]
[1747619259269,0.22383298,105010.0,105000.0,0.58035159]
[1747619259483,0.22383298,105010.0,105000.0,0.37082789]
[1747619272604,0.23318668,105010.0,105000.0,0.5708277]
[1747619272821,0.03959623,105010.0,105000.0,0.58987431]
[1747619272995,0.0110279,105010.0,105000.0,0.71858371]
[1747619273246,0.0110279,105010.0,105000.0,0.74532906]
[1747619273705,0.03007269,105010.0,105000.0,0.74532906]
[1747619273923,0.03959541,105010.0,105000.0,0.74532906]
[1747619274338,0.03808959,105010.0,105000.0,0.74532906]
[1747619276551,0.03808959,105010.0,105000.0,0.73575148]
[1747619277377,0.03808959,105010.0,105000.0,0.71975148]
[1747619277581,0.03808959,105010.0,105000.0,0.70435148]
[1747619277784,0.0476124,105010.0,105000.0,0.70435148]
[1747619279641,0.04761322,105010.0,105000.0,0.70435148]
[1747619279896,0.21902648,105010.0,105000.0,0.68530487]
[1747619280040,0.24210376,105010.0,105000.0,0.58799556]
[1747619280998,0.24210376,105010.0,105000.0,0.59751918]
[1747619281869,0.24210376,105010.0,105000.0,0.59851918]
[1747619282518,0.24210376,105010.0,105000.0,0.58899556]
[1747619282742,0.24210376,105010.0,105000.0,0.59851918]
[1747619284065,0.00952253,105010.0,105000.0,0.62708932]
[1747619284313,0.02856751,105010.0,105000.0,0.62708932]
[1747619284711,0.22854837,105010.0,105000.0,0.61756615]
[1747619284939,0.23472611,105010.0,105000.0,0.60804271]
[1747619285159,0.23258086,105010.0,105000.0,0.04899566]
[1747619285387,0.23258086,105010.0,105000.0,0.02225031]
[1747619285605,0.23258086,105010.0,105000.0,0.36225031]
[1747619285817,0.43354086,105010.0,105000.0,0.02225031]
[1747619286034,0.43354086,105010.0,105000.0,0.36225031]
[1747619288658,0.43354086,105010.0,105000.0,0.37905598]
[1747619290595,0.43354086,105010.0,105000.0,0.02454408]
[1747619291191,0.53085026,105010.0,105000.0,0.02454408]
[1747619291617,0.53085026,105010.0,105000.0,0.00773841]
[1747619291618,0.53382529,105010.0,105000.0,0.00773841]
[1747619292951,0.53085026,105010.0,105000.0,0.00773841]
[1747619293586,0.53089026,105010.0,105000.0,0.00773841]
[1747619299675,0.43358086,105010.0,105000.0,0.00773841]
[1747619302544,0.40098086,105010.0,105000.0,0.00773841]
[1747619302774,0.39145805,105010.0,105000.0,0.00773841]
[1747619303426,0.40098077,105010.0,105000.0,0.1982146]
[1747619303636,0.40098077,105010.0,105000.0,0.00773841]
[1747619304278,0.40098077,105010.0,105000.0,0.01394065]
[1747619304699,0.40098077,105010.0,105000.0,0.21394055]
[1747619304921,0.40098077,105010.0,105000.0,0.24684055]
[1747619305167,0.21052226,105010.0,105000.0,0.60588716]
[1747619305391,0.42954855,105010.0,105000.0,0.59636399]
[1747619305603,0.01904479,105010.0,105000.0,0.60588716]
[1747619305826,0.22854837,105010.0,105000.0,0.59636399]
[1747619306039,0.21902611,105010.0,105000.0,0.59636399]
[1747619306523,0.02856806,105010.0,105000.0,0.60588725]
[1747619306726,0.03809096,105010.0,105000.0,0.60588725]
[1747619306948,0.03809096,105010.0,105000.0,0.60584725]
[1747619307552,0.03809096,105010.0,105000.0,0.61537042]
[1747619308207,0.2351,105030.0,105010.0,0.56600284]
[1747619308428,0.2351,105030.0,105020.0,0.34]
[1747619308429,0.41260154,105030.0,105020.0,0.34]
[1747619308636,0.40308073,105030.0,105020.0,0.34]
[1747619308844,0.43608073,105030.0,105020.0,0.34]
[1747619309479,0.43808073,105030.0,105020.0,0.34]
[1747619310649,0.43608073,105030.0,105020.0,0.34]
[1747619311006,0.44008073,105030.0,105020.0,0.34]
[1747619311618,0.44008073,105030.0,105020.0,0.34718958]